bitfinex/quotes_SOLUSD_20251030
["timestamp","ask_amount","ask_price","bid_price","bid_amount"]
[1761801118230,0.65012742,192.27,192.25,2.08579567]
[1761801118426,0.65012742,192.27,192.23,0.34]
[1761801118822,20.592,192.29,192.23,0.34]
[1761801118823,5.85084837,192.28,192.23,0.34]
[1761801119041,5.85084837,192.28,192.25,2.08579567]
[1761801119844,0.65009361,192.28,192.25,2.08579567]
[1761801120151,0.6500598,192.29,192.26,2.42579567]
[1761801120323,20.592,192.32,192.28,2.08579567]
[1761801120530,0.6499922,192.31,192.29,2.08579567]
[1761801121043,0.6499922,192.31,192.28,2.08579567]
[1761801121230,10.50882769,192.3,192.23,0.34]
[1761801121549,0.6500598,192.29,192.24,5.20290949]
[1761801121746,1.3700598,192.29,192.24,5.20290949]
[1761801121946,5.2007489,192.28,192.24,5.20290949]
[1761801122144,0.65012742,192.27,192.24,5.20290949]
[1761801122549,1.37012742,192.27,192.24,5.20290949]
[1761801122851,1.37012742,192.27,192.22,5.20290949]
[1761801123452,1.37012742,192.27,192.23,5.20290949]
[1761801123821,0.66600981,192.27,192.23,5.20290949]
[1761801124162,6.25731496,192.27,192.23,5.20290949]
[1761801124362,5.59130515,192.27,192.24,5.20290949]
[1761801124963,0.39018547,192.31,192.26,5.20290949]
[1761801125154,14.98768394,192.35,192.3,5.20290949]
[1761801125345,0.39018547,192.34,192.29,5.20290949]
[1761801125943,0.39018547,192.34,192.31,5.20290949]
[1761801125944,5.58957348,192.34,192.31,5.20290949]
[1761801126275,0.2,192.36,192.33,5.20290949]
[1761801126445,0.2,192.36,192.34,5.20290949]
[1761801126636,0.2,192.36,192.35,5.20290949]
[1761801127062,5.39858598,192.36,192.34,5.20290949]
[1761801127750,5.39858598,192.36,192.3,0.4]
[1761801127939,5.39858598,192.36,192.34,5.20290949]
[1761801128335,0.2,192.36,192.35,5.20290949]
[1761801128573,0.2,192.36,192.35,5.60290949]
[1761801128739,0.2,192.36,192.35,5.20290949]
[1761801129863,0.2,192.36,192.32,0.4]
[1761801130053,5.39859705,192.36,192.32,0.4]
[1761801130240,5.39859705,192.36,192.33,5.20290949]
[1761801130446,5.39859705,192.36,192.32,5.20290949]
[1761801130746,6.50878252,192.36,192.32,5.20290949]
[1761801131277,5.78878252,192.36,192.32,5.20290949]
[1761801131847,5.39859705,192.36,192.32,5.20290949]
[1761801132670,5.39859705,192.36,192.33,5.20290949]
[1761801132872,0.2,192.36,192.34,5.20290949]
[1761801133073,0.2,192.36,192.35,5.20290949]
[1761801133377,0.2,192.36,192.35,5.60290949]
[1761801133580,0.2,192.36,192.35,5.20290949]
[1761801134777,0.2,192.36,192.35,5.60290949]
[1761801134980,0.2,192.36,192.35,11.08608888]
[1761801135157,0.2,192.36,192.35,31.68214212]
[1761801135361,0.2,192.36,192.35,34.17798259]
[1761801135671,5.58554717,192.48,192.38,20.592]
[1761801135974,5.58554717,192.48,192.45,7.18291758]
[1761801136142,7.18291758,192.46,192.36,20.592]
[1761801136351,5.19642485,192.44,192.41,7.18291758]
[1761801136971,0.39018547,192.45,192.42,7.38291758]
[1761801137270,0.39018547,192.48,192.44,7.18291758]
[1761801137473,0.39018547,192.48,192.45,7.18291758]
[1761801137650,0.39018547,192.48,192.46,7.18291758]
[1761801138052,0.39018547,192.48,192.42,0.2]
[1761801138372,0.39018547,192.48,192.46,7.18291758]
[1761801138567,5.19531777,192.49,192.47,7.18291758]
[1761801140171,0.59018547,192.51,192.48,7.18291758]
[1761801140377,5.78473533,192.51,192.48,7.18291758]
[1761801140585,6.44473533,192.51,192.48,7.18291758]
[1761801141364,6.44473533,192.51,192.48,3.24392659]
[1761801141679,0.2,192.51,192.5,3.24392659]
[1761801143392,5.39453534,192.51,192.5,7.17744331]
[1761801143778,5.39453534,192.51,192.49,7.17744331]
[1761801144178,5.39453534,192.51,192.5,7.17744331]
[1761801144179,0.2,192.51,192.5,7.17744331]
[1761801145286,0.2,192.51,192.5,7.37744331]
[1761801149101,0.2,192.51,192.5,7.17744331]
[1761801149276,0.2,192.51,192.5,7.37744331]
[1761801149467,0.2,192.51,192.5,7.17744331]
[1761801151078,0.2,192.51,192.49,20.592]
[1761801151500,5.39453534,192.51,192.5,7.17744331]
[1761801151702,6.09453534,192.51,192.48,7.17744331]
[1761801151901,5.39453534,192.51,192.48,7.17744331]
[1761801152202,5.39453534,192.51,192.49,7.17744331]
[1761801153098,5.39453534,192.51,192.45,0.2]
[1761801153404,5.39453534,192.51,192.48,7.17744331]
[1761801153606,5.39453534,192.51,192.5,7.17744331]
[1761801153774,6.09453534,192.51,192.49,7.17744331]
[1761801153977,0.2,192.51,192.5,7.37744331]
[1761801154589,0.2,192.51,192.5,7.51960488]
[1761801155908,0.2,192.51,192.5,0.34216157]
[1761801156091,0.2,192.51,192.5,7.51960488]
[1761801156287,0.2,192.51,192.5,7.31960488]
[1761801156701,0.2,192.51,192.5,8.03908539]
[1761801157208,0.2,192.51,192.5,7.66176645]
[1761801158191,0.2,192.51,192.5,7.31960488]
[1761801159712,0.2,192.51,192.5,7.51960488]
[1761801161093,0.2,192.51,192.5,8.18124696]
[1761801163906,0.2,192.51,192.5,7.98124696]
[1761801164219,0.2,192.51,192.5,28.05376645]
[1761801164608,0.2,192.51,192.5,27.76944331]
[1761801165192,0.2,192.51,192.5,27.96944331]
[1761801165406,0.2,192.51,192.5,27.5582937]
[1761801165607,0.2,192.51,192.5,28.07777421]
[1761801166192,0.2,192.51,192.5,89.67777421]
[1761801166529,0.2,192.51,192.5,89.1582937]
[1761801166832,0.2,192.51,192.5,85.57514685]
[1761801166996,0.2,192.51,192.5,64.84098528]
[1761801166997,0.9,192.51,192.5,64.84098528]
[1761801167186,0.9,192.51,192.5,3.24098528]
[1761801167391,6.09453534,192.51,192.48,3.24098528]
[1761801167711,0.7,192.5,192.48,3.24098528]
[1761801168536,13.02981297,192.49,192.38,0.2]
[1761801168694,33.62181297,192.46,192.4,3.24098528]
[1761801169023,0.39018547,192.45,192.4,3.24098528]
[1761801169235,5.19642485,192.44,192.42,3.24098528]
[1761801169635,0.7,192.43,192.37,20.592]
[1761801169841,0.7,192.48,192.42,3.24098528]
[1761801170025,0.7,192.48,192.47,3.24098528]
[1761801170336,0.7,192.48,192.45,3.24098528]
[1761801170523,1.09018547,192.48,192.44,3.24098528]
[1761801170925,0.7,192.47,192.44,3.24098528]
[1761801171120,5.89580578,192.47,192.44,3.24098528]
[1761801171441,0.7,192.47,192.46,3.24098528]
[1761801171809,0.39018547,192.5,192.46,3.24098528]
[1761801172010,0.2,192.51,192.4,3.96073579]
[1761801172011,0.7,192.49,192.48,3.24098528]
[1761801172640,0.7,192.49,192.47,3.24098528]
[1761801173227,0.7,192.49,192.48,3.24098528]
[1761801173617,5.89507506,192.49,192.48,3.24098528]
[1761801173813,0.7,192.49,192.48,3.24098528]
[1761801174132,5.89507506,192.49,192.42,20.592]
[1761801174448,5.89507506,192.49,192.45,3.24098528]
[1761801174747,1.10018547,192.48,192.45,3.24098528]
[1761801175118,0.71,192.47,192.45,3.24098528]
[1761801175611,5.90563371,192.47,192.45,3.24098528]
[1761801176012,0.71,192.46,192.45,3.24098528]
[1761801176241,0.71,192.49,192.45,3.24098528]
[1761801176542,0.71,192.49,192.47,3.24098528]
[1761801177646,5.90531788,192.49,192.46,3.24098528]
[1761801178018,0.2,192.51,192.46,3.24098528]
[1761801178328,0.2,192.51,192.5,3.24098528]
[1761801178933,0.2,192.51,192.47,0.48432314]
[1761801179134,0.2,192.51,192.5,3.24098528]
[1761801181213,0.2,192.51,192.5,28.07777421]
[1761801181420,0.2,192.51,192.5,23.83298528]
[1761801181616,0.2,192.51,192.5,3.24098528]
[1761801183049,0.2,192.51,192.5,6.48197056]
[1761801183548,0.2,192.51,192.5,3.24098528]
[1761801183736,0.91,192.51,192.5,64.84098528]
[1761801184454,0.2,192.51,192.5,64.84098528]
[1761801185058,0.91,192.51,192.5,64.84098528]
[1761801186046,6.10453534,192.51,192.5,61.6]
[1761801186245,6.10453534,192.51,192.48,3.24098528]
[1761801186429,0.71,192.5,192.48,3.24098528]
[1761801186845,0.71,192.5,192.49,3.24098528]
[1761801187154,0.71,192.5,192.48,3.24098528]
[1761801187526,0.71,192.5,192.47,3.24098528]
[1761801187968,5.19507506,192.49,192.47,3.24098528]
[1761801188359,0.71,192.48,192.47,3.24098528]
[1761801191726,0.91,192.51,192.47,3.24098528]
[1761801191926,0.2,192.51,192.5,3.24098528]
[1761801192132,0.91,192.51,192.5,3.24098528]
[1761801193264,6.10453534,192.51,192.48,3.24098528]
[1761801193451,0.71,192.5,192.47,3.24098528]
[1761801193847,0.2,192.51,192.49,3.24098528]
[1761801194034,0.2,192.51,192.5,3.24098528]
[1761801194237,0.91,192.51,192.5,3.24098528]
[1761801195480,0.91,192.51,192.5,2.07559002]
[1761801199460,0.2,192.51,192.5,2.07559002]
[1761801201161,0.2,192.51,192.5,4.15118004]
[1761801202577,0.2,192.51,192.5,66.09334161]
[1761801204749,0.2,192.51,192.5,65.89334161]
[1761801206378,0.2,192.51,192.5,66.09334161]
[1761801208885,0.2,192.59,192.53,20.592]
[1761801209061,0.72,192.58,192.53,82.192]
[1761801209463,0.2,192.59,192.53,82.192]
[1761801210173,0.2,192.59,192.57,2.07559002]
[1761801210369,5.39239803,192.59,192.57,2.07559002]
[1761801211580,0.72,192.58,192.57,2.07559002]
[1761801212670,0.2,192.59,192.57,2.07559002]
[1761801212890,0.92,192.59,192.58,2.07559002]
[1761801213885,6.11237758,192.59,192.58,2.07559002]
[1761801214060,6.11237758,192.59,192.53,82.192]
[1761801214386,6.11237758,192.59,192.49,0.82216157]
[1761801214387,0.72,192.58,192.52,2.07559002]
[1761801214589,0.39018547,192.57,192.49,61.6]
[1761801214772,0.39018547,192.57,192.51,2.07559002]
[1761801214967,0.72,192.56,192.51,2.07559002]
[1761801215156,0.72,192.56,192.5,2.07559002]
[1761801215157,0.39018547,192.55,192.5,2.07559002]
[1761801215583,5.19399574,192.53,192.5,2.07559002]
[1761801215791,5.58418121,192.53,192.5,2.07559002]
[1761801216092,0.72,192.52,192.5,2.07559002]
[1761801216263,0.72,192.52,192.51,2.07559002]
[1761801217774,5.19401104,192.53,192.51,2.07559002]
[1761801218005,0.72,192.54,192.49,20.592]
[1761801218292,0.72,192.53,192.49,20.592]
[1761801219270,0.72,192.53,192.52,2.07559002]
[1761801220984,5.91349537,192.55,192.52,2.07559002]
[1761801221197,0.92,192.59,192.54,2.07559002]
[1761801221392,0.2,192.59,192.58,2.07559002]
[1761801221765,0.2,192.59,192.53,82.71139957]
[1761801221964,0.2,192.59,192.58,2.07559002]
[1761801222787,0.2,192.59,192.58,2.75559002]
[1761801222992,0.2,192.59,192.58,64.35559002]
[1761801223190,0.2,192.62,192.61,20.592]
[1761801223392,0.2,192.62,192.61,22.95191316]
[1761801223593,0.2,192.62,192.61,24.151097]
[1761801225013,0.2,192.62,192.61,3.559097]
[1761801226400,0.2,192.64,192.62,0.14216157]
[1761801226597,0.2,192.64,192.63,2.87904309]
[1761801226796,0.2,192.64,192.63,2.73688152]
[1761801226984,0.2,192.64,192.63,2.07559002]
[1761801227900,0.2,192.64,192.59,0.14216157]
[1761801228212,0.92,192.64,192.63,2.07559002]
[1761801228718,6.1111702,192.64,192.63,2.07559002]
[1761801228882,6.1111702,192.64,192.59,2.07559002]
[1761801228883,1.31018547,192.64,192.59,2.07559002]
[1761801229084,0.72,192.63,192.6,2.07559002]
[1761801229304,5.19156889,192.62,192.6,2.07559002]
[1761801229681,0.72,192.61,192.6,2.07559002]
[1761801231115,0.2,192.64,192.6,2.07559002]
[1761801231285,0.72,192.63,192.59,20.592]
[1761801231492,0.72,192.63,192.61,1.57559002]
[1761801231914,0.72,192.63,192.6,2.07559002]
[1761801232204,0.72,192.63,192.53,0.82216157]
[1761801232205,0.39018547,192.62,192.59,2.07559002]
[1761801232397,0.9,192.64,192.61,2.07559002]
[1761801232602,0.9,192.64,192.63,2.07559002]
[1761801232800,6.48125146,192.64,192.6,2.07559002]
[1761801232992,0.7,192.63,192.6,2.07559002]
[1761801233191,5.19156889,192.62,192.6,2.07559002]
[1761801233407,0.2,192.64,192.61,2.07559002]
[1761801233596,0.9,192.64,192.63,2.07559002]
[1761801234389,0.2,192.64,192.63,2.07559002]
[1761801234888,0.2,192.64,192.6,0.69]
[1761801235093,0.9,192.64,192.63,2.07559002]
[1761801236013,6.48121537,192.64,192.57,20.592]
[1761801236189,0.7,192.63,192.62,2.07559002]
[1761801236720,0.2,192.64,192.62,2.07559002]
[1761801236891,0.9,192.64,192.63,2.07559002]
[1761801237091,0.2,192.64,192.63,2.07559002]
[1761801239490,0.2,192.64,192.63,0.69]
[1761801239691,0.2,192.64,192.63,20.592]
[1761801240115,0.2,192.64,192.63,22.66759002]
[1761801241526,0.9,192.64,192.6,61.6]
[1761801241727,0.9,192.64,192.63,2.07559002]
[1761801242520,0.2,192.64,192.63,2.07559002]
[1761801243198,6.0910299,192.64,192.62,2.07559002]
[1761801243717,0.7,192.63,192.62,2.07559002]
[1761801245014,0.2,192.64,192.63,20.592]
[1761801245210,0.2,192.64,192.63,22.66759002]
[1761801245449,0.2,192.64,192.63,84.26759002]
[1761801245946,0.2,192.64,192.63,84.95759002]
[1761801246148,0.2,192.64,192.63,84.26759002]
[1761801246449,0.2,192.64,192.63,84.95759002]
[1761801247929,0.2,192.64,192.63,84.26759002]
[1761801248736,0.2,192.64,192.63,85.76104309]
[1761801248930,0.2,192.65,192.63,85.76104309]
[1761801249137,0.2,192.65,192.64,2.76559002]
[1761801250025,0.2,192.65,192.64,3.04991316]
[1761801250243,0.2,192.67,192.65,0.28432314]
[1761801250448,0.2,192.67,192.66,2.07559002]
[1761801250757,0.2,192.67,192.66,63.67559002]
[1761801251050,0.2,192.67,192.66,61.6]
[1761801251258,0.2,192.67,192.66,63.67559002]
[1761801254545,0.86,192.67,192.66,63.67559002]
[1761801254850,0.2,192.67,192.66,63.67559002]
[1761801255053,1e-08,192.71,192.67,16.20432314]
[1761801255360,0.2,192.76,192.71,12.07315082]
[1761801255526,0.2,192.76,192.75,30.66515083]
[1761801255724,0.2,192.78,192.75,33.04074085]
[1761801255926,0.2,192.78,192.77,2.35991316]
[1761801256326,0.2,192.78,192.77,7.84744233]
[1761801256649,0.2,192.8,192.79,0.28432314]
[1761801256828,0.2,192.8,192.79,4.95420228]
[1761801257025,0.2,192.86,192.82,20.592]
[1761801257229,0.2,192.86,192.82,22.95191316]
[1761801257535,0.2,192.86,192.82,21.69494154]
[1761801257852,0.2,192.86,192.82,24.92525361]
[1761801258259,0.2,192.86,192.83,0.28432314]
[1761801258457,0.2,192.86,192.85,3.51463521]
[1761801258752,0.2,192.91,192.88,20.592]
[1761801258946,0.2,192.91,192.9,3.23031207]
[1761801259145,0.2,192.91,192.9,6.46062414]
[1761801259354,0.2,192.91,192.9,8.49420983]
[1761801259557,0.2,192.91,192.9,20.592]
[1761801259763,0.2,192.91,192.9,28.28348338]
[1761801260267,0.86,192.91,192.9,89.88348338]
[1761801260477,0.2,192.91,192.9,89.88348338]
[1761801261562,0.2,192.91,192.9,82.192]
[1761801261772,6.04376444,192.91,192.9,89.88348338]
[1761801261950,0.2,192.91,192.9,89.88348338]
[1761801262268,6.04376444,192.91,192.9,7.69148338]
[1761801262661,0.86,192.91,192.9,7.69148338]
[1761801262867,6.04376444,192.91,192.9,7.69148338]
[1761801263972,6.04376444,192.91,192.87,61.6]
[1761801264169,5.38376444,192.91,192.9,7.69148338]
[1761801264344,5.38376444,192.91,192.89,7.69148338]
[1761801264540,5.38376444,192.91,192.85,61.6]
[1761801264768,0.67,192.9,192.89,7.69148338]
[1761801264962,0.67,192.9,192.85,61.6]
[1761801265244,0.67,192.9,192.89,7.69148338]
[1761801266072,0.67,192.9,192.84,20.592]
[1761801266256,0.67,192.9,192.89,7.69148338]
[1761801266453,5.85403317,192.9,192.89,7.69148338]
[1761801267963,18.81411611,192.9,192.87,7.69148338]
[1761801268148,18.81411611,192.9,192.83,20.592]
[1761801268149,0.67,192.89,192.86,7.69148338]
[1761801268659,1.06018547,192.89,192.85,7.69148338]
[1761801268973,0.67,192.89,192.86,7.69148338]
[1761801269174,0.67,192.88,192.81,20.592]
[1761801269382,0.67,192.88,192.86,7.69148338]
[1761801269587,0.67,192.88,192.87,7.69148338]
[1761801269794,5.18438778,192.89,192.87,7.69148338]
[1761801270091,5.18438778,192.89,192.88,7.69148338]
[1761801270388,0.87,192.91,192.88,7.69148338]
[1761801270612,0.67,192.9,192.88,7.69148338]
[1761801271060,0.67,192.9,192.89,7.69148338]
[1761801271461,5.85403317,192.9,192.89,7.69148338]
[1761801271689,5.85403317,192.9,192.88,7.69148338]
[1761801271857,0.67,192.89,192.88,7.69148338]
[1761801272182,0.2,192.91,192.88,7.69148338]
[1761801272355,0.67,192.9,192.89,7.69148338]
[1761801273683,0.2,192.91,192.89,7.69148338]
[1761801273882,0.2,192.91,192.9,7.69148338]
[1761801274605,0.87,192.91,192.9,7.69148338]
[1761801274784,0.2,192.91,192.9,7.69148338]
[1761801275685,0.87,192.91,192.9,7.69148338]
[1761801276100,0.2,192.91,192.9,7.69148338]
[1761801276303,0.2,192.91,192.88,82.192]
[1761801276505,0.87,192.91,192.9,7.69148338]
[1761801277704,0.2,192.91,192.9,69.29148338]
[1761801277877,0.87,192.91,192.9,69.29148338]
[1761801278071,0.2,192.91,192.9,69.29148338]
[1761801279079,0.2,192.91,192.9,7.69148338]
[1761801280084,0.2,192.91,192.9,8.49420983]
[1761801280286,0.2,192.91,192.9,7.69148338]
[1761801280485,0.2,192.91,192.9,20.592]
[1761801280683,0.2,192.91,192.9,28.28348338]
[1761801281109,0.2,192.91,192.9,20.592]
[1761801281406,0.2,192.91,192.9,23.82093098]
[1761801281610,0.87,192.91,192.9,20.592]
[1761801281818,0.87,192.91,192.9,23.82093098]
[1761801282195,0.2,192.91,192.9,23.82093098]
[1761801282395,0.87,192.91,192.9,23.82093098]
[1761801283704,0.2,192.91,192.9,3.22893098]
[1761801284600,0.87,192.91,192.9,3.22893098]
[1761801284805,0.2,192.91,192.9,3.22893098]
[1761801285483,0.87,192.91,192.9,3.22893098]
[1761801285684,0.87,192.91,192.89,3.22893098]
[1761801285892,0.87,192.91,192.9,3.22893098]
[1761801285893,0.2,192.91,192.9,3.22893098]
[1761801288518,0.2,192.91,192.9,27.04986196]
[1761801288684,0.2,192.91,192.9,6.75786196]
[1761801288887,0.2,192.91,192.9,6.45786196]
[1761801289214,0.2,192.91,192.9,3.22893098]
[1761801289416,0.2,192.91,192.9,24.12093098]
[1761801289919,0.2,192.91,192.9,27.04986196]
[1761801291408,0.2,192.91,192.9,27.6341851]
[1761801291597,0.2,192.94,192.9,94.41821827]
[1761801291801,0.2,192.94,192.93,23.82093098]
[1761801292324,0.2,192.94,192.93,24.40525412]
[1761801292904,0.2,192.94,192.93,24.10525412]
[1761801293097,0.2,192.94,192.93,24.92357682]
[1761801293302,0.2,192.94,192.93,23.82093098]
[1761801293812,0.9,192.94,192.93,23.82093098]
[1761801294020,6.08295843,192.94,192.93,3.22893098]
[1761801295207,0.9,192.94,192.93,3.22893098]
[1761801295794,6.08295843,192.94,192.93,3.22893098]
[1761801295993,0.9,192.94,192.93,3.22893098]
[1761801296522,6.08295843,192.94,192.93,3.22893098]
[1761801298831,6.08295843,192.94,192.83,5.18587658]
[1761801298832,6.08295843,192.94,192.83,20.892]
[1761801299131,0.7,192.93,192.91,3.22893098]
[1761801299425,0.7,192.93,192.92,3.22893098]
[1761801299730,0.7,192.93,192.86,20.592]
[1761801299934,0.7,192.93,192.92,3.22893098]
[1761801300416,0.7,192.93,192.86,20.592]
[1761801300811,5.88322707,192.93,192.91,3.22893098]
[1761801301001,5.88322707,192.93,192.86,20.592]
[1761801301205,1.09018547,192.92,192.88,3.22893098]
[1761801301646,0.7,192.91,192.9,3.22893098]
[1761801301845,0.7,192.91,192.89,3.22893098]
[1761801302445,0.7,192.91,192.84,20.592]
[1761801302752,5.18403317,192.9,192.84,20.592]
[1761801302950,5.57421864,192.9,192.81,0.51864529]
[1761801303119,5.57421864,192.9,192.84,3.22893098]
[1761801303120,0.7,192.89,192.84,3.22893098]
[1761801303310,0.39018547,192.88,192.84,3.22893098]
[1761801303647,9.78882769,192.87,192.82,3.22893098]
[1761801303811,9.78882769,192.85,192.72,0.8188875]
[1761801304008,0.39018547,192.84,192.81,3.22893098]
[1761801304204,1.09018547,192.85,192.82,3.22893098]
[1761801304412,0.39018547,192.84,192.82,3.22893098]
[1761801304734,18.14787928,192.86,192.82,3.22893098]
[1761801305049,0.39018547,192.85,192.82,3.22893098]
[1761801305229,1.09018547,192.85,192.82,3.22893098]
[1761801305764,0.7,192.84,192.73,0.3]
[1761801305967,0.39018547,192.83,192.78,3.22893098]
[1761801306444,0.7,192.82,192.71,0.71891443]
[1761801306646,3.22893098,192.79,192.71,0.2]
[1761801306960,0.7,192.82,192.72,0.3]
[1761801307254,26.86863845,192.81,192.76,3.22893098]
[1761801307432,3.22893098,192.79,192.73,3.22893098]
[1761801307639,9.78882769,192.77,192.71,0.2]
[1761801307938,3.61911645,192.76,192.71,0.2]
[1761801308158,4.31911645,192.76,192.71,0.2]
[1761801308331,3.22893098,192.74,192.71,0.2]
[1761801308526,13.01775867,192.72,192.66,0.2]
[1761801308749,5.18968291,192.69,192.66,0.2]
[1761801309043,0.39018547,192.69,192.67,3.22893098]
[1761801309271,5.18803281,192.76,192.66,20.792]
[1761801309547,0.7,192.69,192.66,20.792]
[1761801309940,0.7,192.71,192.66,20.792]
[1761801310127,0.7,192.71,192.66,0.2]
[1761801310638,0.39018547,192.74,192.7,3.22893098]
[1761801310842,0.7,192.77,192.71,20.592]
[1761801311040,1.09018547,192.76,192.73,3.22893098]
[1761801311564,0.7,192.75,192.73,3.22893098]
[1761801311736,0.7,192.76,192.74,3.22893098]
[1761801311923,0.39018547,192.8,192.75,3.22893098]
[1761801312117,1.09018547,192.78,192.73,20.592]
[1761801312337,1.09018547,192.78,192.7,3.22893098]
[1761801312338,0.7,192.78,192.72,20.592]
[1761801312542,0.7,192.78,192.77,3.22893098]
[1761801312751,0.7,192.77,192.73,20.592]
[1761801312954,0.7,192.77,192.76,3.22893098]
[1761801313262,0.39018547,192.81,192.76,3.22893098]
[1761801313263,0.7,192.8,192.76,3.22893098]
[1761801313424,0.7,192.8,192.76,7.15611296]
[1761801313764,5.88674392,192.8,192.78,7.15611296]
[1761801313920,5.88674392,192.8,192.72,20.592]
[1761801313921,0.39018547,192.79,192.72,20.592]
[1761801314120,1.05018547,192.79,192.74,7.15611296]
[1761801314658,0.66,192.78,192.72,20.592]
[1761801314960,0.66,192.78,192.74,7.15611296]
[1761801314961,0.39018547,192.77,192.74,7.15611296]
[1761801315128,0.66,192.78,192.76,7.15611296]
[1761801315327,0.66,192.78,192.77,7.15611296]
[1761801315757,0.66,192.78,192.76,7.15611296]
[1761801316125,0.39018547,192.77,192.71,20.592]
[1761801316354,0.39018547,192.77,192.73,7.15611296]
[1761801316526,0.66,192.76,192.73,7.15611296]
[1761801316726,0.66,192.76,192.74,7.15611296]
[1761801316932,5.84788862,192.76,192.74,7.15611296]
[1761801317131,0.39018547,192.75,192.67,20.592]
[1761801317350,1.05018547,192.75,192.71,5.17800151]
[1761801317554,1.05018547,192.75,192.66,0.2]
[1761801317853,0.66,192.74,192.7,5.17800151]
[1761801318031,0.39018547,192.73,192.7,5.17800151]
[1761801318445,0.66,192.72,192.7,5.17800151]
[1761801318852,5.18914431,192.71,192.7,5.17800151]
[1761801319027,0.66,192.71,192.7,5.17800151]
[1761801319450,0.66,192.71,192.66,0.2]
[1761801319648,0.39018547,192.7,192.66,0.2]
[1761801319869,9.78882769,192.69,192.66,0.2]
[1761801320074,0.39018547,192.68,192.66,0.2]
[1761801320274,1.05018547,192.68,192.66,0.2]
[1761801320660,0.66,192.67,192.66,0.2]
[1761801320979,0.66,192.67,192.66,5.37800151]
[1761801321187,5.58022816,192.68,192.66,5.37800151]
[1761801321188,0.39018547,192.71,192.66,5.37800151]
[1761801321387,5.18861062,192.73,192.7,5.17800151]
[1761801321683,0.66,192.71,192.66,0.2]
[1761801322274,6.23879609,192.73,192.66,0.7]
[1761801322474,0.66,192.73,192.66,0.7]
[1761801322676,0.66,192.72,192.66,0.2]
[1761801322874,0.66,192.72,192.7,5.17800151]
[1761801323079,5.18914431,192.71,192.7,5.17800151]
[1761801323380,0.66,192.72,192.7,5.17800151]
[1761801323676,0.66,192.71,192.7,5.17800151]
[1761801324093,1.05018547,192.73,192.7,5.17800151]
[1761801324277,1.05018547,192.73,192.66,0.2]
[1761801324278,0.66,192.72,192.71,5.17800151]
[1761801325079,5.84887505,192.72,192.71,5.17800151]
[1761801326173,5.84887505,192.72,192.7,5.17800151]
[1761801326774,1.05018547,192.71,192.69,5.17800151]
[1761801327076,5.18941359,192.7,192.68,5.17800151]
[1761801327276,0.39018547,192.69,192.67,5.17800151]
[1761801327477,1.05018547,192.69,192.67,5.17800151]
[1761801327973,0.66,192.68,192.66,5.37800151]
[1761801328379,0.39018547,192.67,192.66,0.2]
[1761801328794,1.05018547,192.67,192.66,0.2]
[1761801328997,1.05018547,192.67,192.66,5.37800151]
[1761801329205,0.66,192.67,192.66,5.37800151]
[1761801329473,5.19008812,192.68,192.66,5.37800151]
[1761801329686,5.19008812,192.68,192.67,5.17800151]
[1761801329856,5.84930133,192.71,192.67,5.17800151]
[1761801330061,5.18930133,192.71,192.68,5.17800151]
[1761801331187,1.05018547,192.73,192.68,5.17800151]
[1761801331188,5.18887505,192.72,192.68,5.17800151]
[1761801331385,5.84887505,192.72,192.68,5.17800151]
[1761801331585,0.66,192.72,192.69,5.17800151]
[1761801331762,0.66,192.74,192.69,5.17800151]
[1761801331963,6.23825291,192.75,192.69,5.17800151]
[1761801332180,0.66,192.74,192.69,5.17800151]
[1761801332381,5.57825291,192.75,192.66,5.39043972]
[1761801332578,0.66,192.77,192.74,5.17800151]
[1761801332768,0.66,192.77,192.75,5.17800151]
[1761801332975,5.18752413,192.78,192.75,5.17800151]
[1761801333274,0.66,192.78,192.75,5.17800151]
[1761801333663,0.66,192.8,192.76,5.17800151]